fUST/lending_fUST_20240721
["ID","MTS","AMOUNT","RATE_DAILY","PERIOD"]
[332751478,1721502655566,-1436.8,0.00014246,2]
[332751479,1721502655578,-500.0,0.00014246,2]
[332751480,1721502655590,-2479.41,0.00014246,2]
[332751481,1721502655599,-500.0,0.00014246,2]
[332751482,1721502655609,-9974.88,0.00014246,2]
[332751483,1721502655618,-3611.41,0.00014246,2]
[332751484,1721502655627,-521.4783236,0.00014246,2]
[332751485,1721502655636,-647.58,0.00014246,2]
[332751486,1721502655646,-500.0,0.00014246,2]
[332751487,1721502655655,-500.0,0.00014246,2]
[332751488,1721502655665,-769.49,0.00014246,2]
[332751489,1721502655674,-500.0,0.00014246,2]
[332751490,1721502655684,-596.66,0.00014246,2]
[332751491,1721502655693,-1189.46,0.00014246,2]
[332751492,1721502655702,-500.0,0.00014246,2]
[332751493,1721502655713,-1876.24,0.00014246,2]
[332751494,1721502655724,-500.0,0.00014246,2]
[332751495,1721502655733,-251.91577685,0.00014246,2]
[332751496,1721502655743,-500.0,0.00014246,2]
[332751497,1721502655753,-500.0,0.00014246,2]
[332751498,1721502655763,-500.0,0.00014246,2]
[332751499,1721502655772,-922.66,0.00014246,2]
[332751500,1721502655781,-3228.45,0.00014246,2]
[332751501,1721502655791,-500.0,0.00014246,2]
[332751502,1721502655800,-500.0,0.00014246,2]
[332751503,1721502655810,-353.74643827,0.00014246,2]
[332751504,1721502655821,-693.44,0.00014246,2]
[332751505,1721502655830,-617.69,0.00014246,2]
[332751506,1721502655839,-2182.76,0.00014246,2]
[332751507,1721502655849,-500.0,0.00014246,2]
[332751508,1721502655858,-500.0,0.00014246,2]
[332751509,1721502655868,-9525.09,0.00014246,2]
[332751510,1721502655877,-500.0,0.00014246,2]
[332751511,1721502655888,-500.0,0.00014246,2]
[332751512,1721502655898,-500.0,0.00014246,2]
[332751513,1721502655907,-500.0,0.00014246,2]
[332751514,1721502655917,-500.0,0.00014246,2]
[332751515,1721502655928,-501.72983271,0.00014246,2]
[332751516,1721502655938,-3568.54,0.00014246,2]
[332751517,1721502655947,-2915.71,0.00014246,2]
[332751518,1721502655958,-18390.94,0.00014246,2]
[332751519,1721502655968,-598.86,0.00014246,2]
[332751520,1721502655979,-912.35,0.00014246,2]
[332751521,1721502655990,-500.0,0.00014246,2]
[332751522,1721502656001,-650.96,0.00014246,2]
[332751523,1721502656012,-2230.68,0.00014246,2]
[332751524,1721502656022,-500.0,0.00014246,2]
[332751525,1721502656031,-502.63355936,0.00014246,2]
[332751526,1721502656041,-5451.22,0.00014246,2]
[332751527,1721502656050,-2974.58,0.00014246,2]
[332751528,1721502656060,-1615.36,0.00014246,2]
[332751529,1721502656070,-500.0,0.00014246,2]
[332751530,1721502656080,-930.37,0.00014246,2]
[332751531,1721502656090,-1486.4,0.00014246,2]
[332751532,1721502656100,-453.62559309,0.00014246,2]
[332751533,1721502656110,-500.0,0.00014246,2]
[332751534,1721502656119,-3008.42,0.00014246,2]
[332751535,1721502656130,-1164.01,0.00014246,2]
[332751536,1721502656141,-500.0,0.00014246,2]
[332751537,1721502656150,-505.99,0.00014246,2]
[332751538,1721502656159,-500.0,0.00014246,2]
[332751539,1721502656170,-500.0,0.00014246,2]
[332751540,1721502656181,-7393.66,0.00014246,2]
[332751541,1721502656191,-1240.33,0.00014246,2]
[332751542,1721502656201,-5002.05,0.00014246,2]
[332751543,1721502656212,-500.0,0.00014246,2]
[332751544,1721502656224,-637.33,0.00014246,2]
[332751545,1721502656234,-500.0,0.00014246,2]
[332751546,1721502656246,-500.0,0.00014246,2]
[332751547,1721502656257,-3246.02,0.00014246,2]
[332751548,1721502656269,-688.84,0.00014246,2]
[332751549,1721502656279,-500.0,0.00014246,2]
[332751550,1721502656290,-500.0,0.00014246,2]
[332751551,1721502656302,-500.0,0.00014246,2]
[332751552,1721502656313,-842.79,0.00014246,2]
[332751553,1721502656323,-562.63316697,0.00014246,2]
[332751554,1721502656333,-892.81,0.00014246,2]
[332751555,1721502656343,-641.37526896,0.00014246,2]
[332751556,1721502656353,-2112.87,0.00014246,2]
[332751557,1721502656363,-500.0,0.00014246,2]
[332751558,1721502656375,-1172.79,0.00014246,2]
[332751559,1721502656385,-2831.62,0.00014246,2]
[332751560,1721502656394,-3992.43,0.00014246,2]
[332751561,1721502656404,-500.0,0.00014246,2]
[332751562,1721502656413,-756.41,0.00014246,2]
[332751563,1721502656423,-660.429424,0.00014246,2]
[332751564,1721502656433,-1025.73,0.00014246,2]
[332751565,1721502656443,-601.67470916,0.00014246,2]
[332751566,1721502656452,-500.0,0.00014246,2]
[332751567,1721502656462,-1594.87,0.00014246,2]
[332751568,1721502656472,-660.429424,0.00014246,2]
[332751569,1721502656482,-500.0,0.00014246,2]
[332751570,1721502656491,-12028.21,0.00014246,2]
[332751571,1721502656501,-500.0,0.00014246,2]
[332751572,1721502656512,-500.0,0.00014246,2]
[332751573,1721502656523,-500.0,0.00014246,2]
[332751574,1721502656533,-500.0,0.00014246,2]
[332751575,1721502656542,-500.0,0.00014246,2]
[332751576,1721502656552,-2095.06,0.00014246,2]
[332751577,1721502656562,-787.88,0.00014246,2]
[332751578,1721502656573,-3362.83,0.00014246,2]
[332751579,1721502656583,-500.0,0.00014246,2]
[332751580,1721502656592,-545.49,0.00014246,2]
[332751581,1721502656602,-500.0,0.00014246,2]
[332751582,1721502656612,-1126.35,0.00014246,2]
[332751583,1721502656621,-1085.97,0.00014246,2]
[332751584,1721502656631,-500.0,0.00014246,2]
[332751585,1721502656640,-626.5,0.00014246,2]
[332751586,1721502656649,-2866.21,0.00014246,2]
[332751587,1721502656706,-500.0,0.00014246,2]
[332751588,1721502656719,-500.0,0.00014246,2]
[332751589,1721502656729,-507.40824382,0.00014246,2]
[332751590,1721502656738,-1437.62,0.00014246,2]
[332751591,1721502656748,-500.0,0.00014246,2]
[332751592,1721502656759,-558.13,0.00014246,2]
[332751593,1721502656769,-3130.58,0.00014246,2]
[332751594,1721502656779,-500.0,0.00014246,2]
[332751595,1721502656788,-500.0,0.00014246,2]
[332751596,1721502656803,-500.0,0.00014246,2]
[332751597,1721502656812,-2781.42,0.00014246,2]
[332751598,1721502656822,-2367.78,0.00014246,2]
[332751599,1721502656831,-500.0,0.00014246,2]
[332751600,1721502656840,-5408.7,0.00014246,2]
[332751601,1721502656849,-421.88467126,0.00014246,2]
[332751602,1721502656858,-500.0,0.00014246,2]
[332751603,1721502656867,-10858.16,0.00014246,2]
[332751604,1721502656877,-820.06,0.00014246,2]
[332751605,1721502656886,-1251.33,0.00014246,2]
[332751606,1721502656895,-500.0,0.00014246,2]
[332751607,1721502656904,-500.0,0.00014246,2]
[332751608,1721502656914,-500.0,0.00014246,2]
[332751609,1721502656923,-2190.32,0.00014246,2]
[332751610,1721502656932,-1627.8,0.00014246,2]
[332751611,1721502656942,-500.0,0.00014246,2]
[332751612,1721502656951,-500.0,0.00014246,2]
[332751613,1721502656960,-500.0,0.00014246,2]
[332751614,1721502656969,-1332.24,0.00014246,2]
[332751615,1721502656978,-500.0,0.00014246,2]
[332751616,1721502656988,-2697.92,0.00014246,2]
[332751617,1721502656998,-560.73301691,0.00014246,2]
[332751618,1721502657007,-500.0,0.00014246,2]
[332751619,1721502657017,-500.0,0.00014246,2]
[332751620,1721502657026,-1186.45,0.00014246,2]
[332751621,1721502657035,-500.0,0.00014246,2]
[332751622,1721502657044,-500.0,0.00014246,2]
[332751623,1721502657053,-500.0,0.00014246,2]
[332751624,1721502657062,-500.0,0.00014246,2]
[332751625,1721502657071,-1831.22,0.00014246,2]
[332751626,1721502657081,-1386.39,0.00014246,2]
[332751627,1721502657091,-982.65,0.00014246,2]
[332751628,1721502657100,-500.0,0.00014246,2]
[332751629,1721502657110,-560.44,0.00014246,2]
[332751630,1721502657119,-500.0,0.00014246,2]
[332751631,1721502657129,-580.38,0.00014246,2]
[332751632,1721502657138,-500.0,0.00014246,2]
[332751633,1721502657147,-53188.42,0.00014246,2]
[332751634,1721502657156,-2374.03,0.00014246,2]
[332751635,1721502657165,-500.0,0.00014246,2]
[332751636,1721502657174,-519.01,0.00014246,2]
[332751637,1721502657184,-983.82,0.00014246,2]
[332751638,1721502657193,-500.0,0.00014246,2]
[332751639,1721502657203,-500.0,0.00014246,2]
[332751640,1721502657213,-500.0,0.00014246,2]
[332751641,1721502657223,-513.01,0.00014246,2]
[332751642,1721502657237,-750.0,0.00014247,2]
[332751643,1721502657247,-150.112233,0.000143,3]
[332751644,1721502657257,-1408.0,0.00014334,2]
[332751645,1721502657267,-150.112233,0.000144,4]
[332751646,1721502657278,-587.0,0.00014474,2]
[332751647,1721502657289,-150.112233,0.000145,5]
[332751648,1721502657300,-500.0,0.0001452,2]
[332751649,1721502657310,-500.0,0.0001452,2]
[332751650,1721502657321,-500.0,0.0001452,2]
[332751651,1721502657332,-500.0,0.0001452,2]
[332751652,1721502657344,-2148.74,0.0001452,2]
[332751653,1721502657354,-767.58,0.0001452,2]
[332751654,1721502657364,-500.0,0.0001452,2]
[332751655,1721502657375,-500.0,0.0001452,2]
[332751656,1721502657385,-500.0,0.0001452,2]
[332751657,1721502657396,-500.0,0.0001452,2]
[332751658,1721502657406,-516.82,0.0001452,2]
[332751659,1721502657416,-869.09,0.0001452,2]
[332751660,1721502657427,-500.0,0.0001452,2]
[332751661,1721502657438,-500.0,0.0001452,2]
[332751662,1721502657448,-659.76,0.0001452,2]
[332751663,1721502657458,-169.5171672,0.0001452,2]
[332751664,1721502657467,-500.0,0.0001452,2]
[332751665,1721502657478,-1280.91,0.0001452,2]
[332751666,1721502657487,-510.23,0.0001452,2]
[332751667,1721502657497,-574.37,0.0001452,2]
[332751668,1721502657506,-624.8,0.0001452,2]
[332751669,1721502657516,-1630.66,0.0001452,2]
[332751670,1721502657526,-500.0,0.0001452,2]
[332751671,1721502657536,-897.05,0.0001452,2]
[332751672,1721502657547,-500.0,0.0001452,2]
[332751673,1721502657556,-569.39,0.0001452,2]
[332751674,1721502657566,-500.0,0.0001452,2]
[332751675,1721502657575,-500.0,0.0001452,2]
[332751676,1721502657585,-500.0,0.0001452,2]
[332751677,1721502657594,-855.45,0.0001452,2]
[332751678,1721502657604,-500.0,0.0001452,2]
[332751679,1721502657614,-500.0,0.0001452,2]
[332751680,1721502657623,-500.0,0.0001452,2]
[332751681,1721502657633,-500.0,0.0001452,2]
[332751682,1721502657643,-514.11,0.0001452,2]
[332751683,1721502657652,-500.0,0.0001452,2]
[332751684,1721502657662,-500.0,0.0001452,2]
[332751685,1721502657672,-570.33,0.0001452,2]
[332751686,1721502657682,-1729.02,0.0001452,2]
[332751687,1721502657692,-500.0,0.0001452,2]
[332751688,1721502657702,-841.34,0.0001452,2]
[332751689,1721502657713,-3333.82,0.0001452,2]
[332751690,1721502657725,-811.6,0.0001452,2]
[332751691,1721502657734,-500.0,0.0001452,2]
[332751692,1721502657744,-500.0,0.0001452,2]
[332751693,1721502657754,-890.96,0.0001452,2]
[332751694,1721502657763,-500.0,0.0001452,2]
[332751695,1721502657773,-910.84,0.0001452,2]
[332751696,1721502657782,-500.0,0.0001452,2]
[332751697,1721502657793,-2988.04,0.0001452,2]
[332751698,1721502657803,-907.34,0.0001452,2]
[332751699,1721502657812,-500.0,0.0001452,2]
[332751700,1721502657822,-500.0,0.0001452,2]
[332751701,1721502657832,-815.17,0.0001452,2]
[332751702,1721502657841,-500.0,0.0001452,2]
[332751703,1721502657850,-796.91,0.0001452,2]
[332751704,1721502657860,-500.0,0.0001452,2]
[332751705,1721502657869,-500.0,0.0001452,2]
[332751706,1721502657878,-549.5,0.0001452,2]
[332751707,1721502657888,-1045.53,0.0001452,2]
[332751708,1721502657898,-2405.94,0.0001452,2]
[332751709,1721502657908,-1192.24,0.0001452,2]
[332751710,1721502657920,-500.0,0.0001452,2]
[332751711,1721502657930,-1176.28,0.0001452,2]
[332751712,1721502657941,-596.33,0.0001452,2]
[332751713,1721502657951,-500.0,0.0001452,2]
[332751714,1721502657961,-545.40045561,0.0001452,2]
[332751715,1721502657970,-500.0,0.0001452,2]
[332751716,1721502657980,-691.36,0.0001452,2]
[332751717,1721502657990,-500.0,0.0001452,2]
[332751718,1721502658001,-500.0,0.0001452,2]
[332751719,1721502658010,-677.36,0.0001452,2]
[332751720,1721502658020,-500.0,0.0001452,2]
[332751721,1721502658029,-500.0,0.0001452,2]
[332751722,1721502658039,-2278.46,0.0001452,2]
[332751723,1721502658048,-505.68,0.0001452,2]
[332751724,1721502658057,-4286.48,0.0001452,2]
[332751725,1721502658068,-840.8,0.0001452,2]
[332751726,1721502658079,-500.0,0.0001452,2]
[332751727,1721502658089,-1468.94,0.0001452,2]
[332751728,1721502658100,-665.65,0.0001452,2]
[332751729,1721502658111,-500.0,0.0001452,2]
[332751730,1721502658121,-1167.12,0.0001452,2]
[332751731,1721502658132,-500.0,0.0001452,2]
[332751732,1721502658142,-500.0,0.0001452,2]
[332751733,1721502658154,-500.0,0.0001452,2]
[332751734,1721502658165,-505.5,0.0001452,2]
[332751735,1721502658175,-500.0,0.0001452,2]
[332751736,1721502658186,-594.43,0.0001452,2]
[332751737,1721502658195,-513.99920471,0.0001452,2]
[332751738,1721502658207,-500.0,0.0001452,2]
[332751739,1721502658216,-500.0,0.0001452,2]
[332751740,1721502658225,-959.91,0.0001452,2]
[332751741,1721502658235,-500.0,0.0001452,2]
[332751742,1721502658247,-620.43,0.0001452,2]
[332751743,1721502658258,-500.0,0.0001452,2]
[332751744,1721502658268,-688.18,0.0001452,2]
[332751745,1721502658281,-1890.28,0.0001452,2]
[332751746,1721502658290,-817.2,0.0001452,2]
[332751747,1721502658300,-500.0,0.0001452,2]
[332751748,1721502658309,-500.0,0.0001452,2]
[332751749,1721502658318,-500.0,0.0001452,2]
[332751750,1721502658331,-500.0,0.0001452,2]
[332751751,1721502658346,-208.87,0.0001452,2]
[332751752,1721502658358,-500.0,0.0001452,2]
[332751753,1721502658370,-582.80298837,0.0001452,2]
[332751754,1721502658380,-609.35,0.0001452,2]
[332751755,1721502658389,-596.65,0.0001452,2]
[332751756,1721502658400,-500.0,0.0001452,2]
[332751757,1721502658409,-813.45,0.0001452,2]
[332751758,1721502658418,-500.0,0.0001452,2]
[332751759,1721502658428,-1086.772294,0.0001452,2]
[332751760,1721502658437,-861.65,0.0001452,2]
[332751761,1721502658446,-1086.772294,0.0001452,2]
[332751762,1721502658456,-500.0,0.0001452,2]
[332751763,1721502658465,-527.11963763,0.0001452,2]
[332751764,1721502658474,-558.31,0.0001452,2]
[332751765,1721502658483,-688.03,0.0001452,2]
[332751766,1721502658492,-500.0,0.0001452,2]
[332751767,1721502658502,-500.0,0.0001452,2]
[332751768,1721502658512,-2734.19,0.0001452,2]
[332751769,1721502658524,-539.26,0.0001452,2]
[332751770,1721502658533,-1930.7,0.0001452,2]
[332751771,1721502658543,-500.0,0.0001452,2]
[332751772,1721502658552,-500.0,0.0001452,2]
[332751773,1721502658565,-1766.9,0.0001452,2]
[332751774,1721502658582,-500.0,0.0001452,2]
[332751775,1721502658597,-500.0,0.0001452,2]
[332751776,1721502658607,-500.0,0.0001452,2]
[332751777,1721502658617,-1282.95,0.0001452,2]
[332751778,1721502658626,-500.0,0.0001452,2]
[332751779,1721502658636,-500.0,0.0001452,2]
[332751780,1721502658645,-371.21872969,0.0001452,2]
[332751781,1721502658655,-500.0,0.0001452,2]
[332751782,1721502658665,-500.0,0.0001452,2]
[332751783,1721502658674,-500.0,0.0001452,2]
[332751784,1721502658684,-500.0,0.0001452,2]
[332751785,1721502658693,-150.0,0.0001452,2]
[332751786,1721502658702,-500.0,0.0001452,2]
[332751787,1721502658716,-315.09393361,0.0001452,2]
[332751788,1721502658726,-500.0,0.0001452,2]
[332751789,1721502658735,-500.0,0.0001452,2]
[332751790,1721502658745,-500.0,0.0001452,2]
[332751791,1721502658756,-500.0,0.0001452,2]
[332751792,1721502658766,-1393.65,0.0001452,2]
[332751793,1721502658776,-500.0,0.0001452,2]
[332751794,1721502658786,-961.48,0.0001452,2]
[332751795,1721502658797,-500.0,0.0001452,2]
[332751796,1721502658806,-500.0,0.0001452,2]
[332751797,1721502658816,-500.0,0.0001452,2]
[332751798,1721502658826,-1367.5,0.0001452,2]
[332751799,1721502658835,-500.0,0.0001452,2]
[332751800,1721502658845,-500.0,0.0001452,2]
[332751801,1721502658855,-500.0,0.0001452,2]
[332751802,1721502658864,-500.0,0.0001452,2]
[332751803,1721502658874,-500.0,0.0001452,2]
[332751804,1721502658883,-500.0,0.0001452,2]
[332751805,1721502658893,-2168.23,0.0001452,2]
[332751806,1721502658903,-151.0,0.0001452,2]
[332751807,1721502658912,-763.32,0.0001452,2]
[332751808,1721502658922,-235.854336,0.0001452,2]
[332751809,1721502658932,-560.63,0.0001452,2]
[332751810,1721502658941,-2063.58,0.0001452,2]
[332751811,1721502658951,-529.69,0.0001452,2]
[332751812,1721502658961,-1069.52,0.0001452,2]
[332751813,1721502658971,-1791.92,0.0001452,2]
[332751814,1721502658981,-1003.63,0.0001452,2]
[332751815,1721502658991,-652.79,0.0001452,2]
[332751816,1721502659000,-897.56,0.0001452,2]
[332751817,1721502659011,-541.46,0.0001452,2]
[332751818,1721502659020,-500.0,0.0001452,2]
[332751819,1721502659029,-1267.33,0.0001452,2]
[332751820,1721502659039,-637.53893582,0.0001452,2]
[332751821,1721502659049,-724.24,0.0001452,2]
[332751822,1721502659059,-721.38,0.0001452,2]
[332751823,1721502659068,-1614.07,0.0001452,2]
[332751824,1721502659078,-500.0,0.0001452,2]
[332751825,1721502659087,-2399.27,0.0001452,2]
[332751826,1721502659097,-35124.72,0.0001452,2]
[332751827,1721502659107,-989.91,0.0001452,2]
[332751828,1721502659118,-503.98,0.0001452,2]
[332751829,1721502659128,-500.0,0.0001452,2]
[332751830,1721502659138,-500.0,0.0001452,2]
[332751831,1721502659148,-642.9,0.0001452,2]
[332751832,1721502659159,-521.24,0.0001452,2]
[332751833,1721502659169,-500.0,0.0001452,2]
[332751834,1721502659179,-2146.19,0.0001452,2]
[332751835,1721502659189,-500.0,0.0001452,2]
[332751836,1721502659200,-500.0,0.0001452,2]
[332751837,1721502659210,-500.0,0.0001452,2]
[332751838,1721502659220,-1566.01,0.0001452,2]
[332751839,1721502659231,-711.11,0.0001452,2]
[332751840,1721502659241,-621.70287847,0.0001452,2]
[332751841,1721502659252,-500.0,0.0001452,2]
[332751842,1721502659262,-563.29,0.0001452,2]
[332751843,1721502659272,-500.0,0.0001452,2]
[332751844,1721502659283,-3869.74,0.0001452,2]
[332751845,1721502659293,-500.0,0.0001452,2]
[332751846,1721502659303,-921.43,0.0001452,2]
[332751847,1721502659313,-500.0,0.0001452,2]
[332751848,1721502659323,-351.71501332,0.0001452,2]
[332751849,1721502659333,-500.0,0.0001452,2]
[332751850,1721502659344,-2074.95,0.0001452,2]
[332751851,1721502659354,-1226.56,0.0001452,2]
[332751852,1721502659365,-500.0,0.0001452,2]
[332751853,1721502659375,-654.24,0.0001452,2]
[332751854,1721502659384,-500.0,0.0001452,2]
[332751855,1721502659395,-744.59,0.0001452,2]
[332751856,1721502659404,-151.0,0.0001452,2]
[332751857,1721502659414,-1193.56,0.0001452,2]
[332751858,1721502659424,-2356.17,0.0001452,2]
[332751859,1721502659435,-2413.04,0.0001452,2]
[332751860,1721502659445,-3002.39,0.0001452,2]
[332751861,1721502659455,-500.0,0.0001452,2]
[332751862,1721502659465,-5614.66,0.0001452,2]
[332751863,1721502659475,-762.0,0.0001452,2]
[332751864,1721502659486,-3045.38,0.0001452,2]
[332751865,1721502659495,-699.32,0.0001452,2]
[332751866,1721502659506,-500.0,0.0001452,2]
[332751867,1721502659516,-601.56,0.0001452,2]
[332751868,1721502659526,-500.0,0.0001452,2]
[332751869,1721502659536,-500.0,0.0001452,2]
[332751870,1721502659546,-500.0,0.0001452,2]
[332751871,1721502659556,-2628.42,0.0001452,2]
[332751872,1721502659567,-2158.72,0.0001452,2]
[332751873,1721502659577,-607.75,0.0001452,2]
[332751874,1721502659588,-682.11,0.0001452,2]
[332751875,1721502659598,-500.0,0.0001452,2]
[332751876,1721502659609,-500.0,0.0001452,2]
[332751877,1721502659618,-758.22,0.0001452,2]
[332751878,1721502659628,-500.0,0.0001452,2]
[332751879,1721502659638,-1334.16,0.0001452,2]
[332751880,1721502659648,-1436.8,0.0001452,2]
[332751881,1721502659658,-500.0,0.0001452,2]
[332751882,1721502659668,-2479.41,0.0001452,2]
[332751883,1721502659678,-500.0,0.0001452,2]
[332751884,1721502659688,-9974.88,0.0001452,2]
[332751885,1721502659698,-3611.41,0.0001452,2]
[332751886,1721502659708,-647.58,0.0001452,2]
[332751887,1721502659722,-500.0,0.0001452,2]
[332751888,1721502659732,-769.49,0.0001452,2]
[332751889,1721502659742,-423.73046473,0.0001452,2]
[332751890,1721502659752,-503.55041733,0.0001452,2]
[332751891,1721502659763,-596.66,0.0001452,2]
[332751892,1721502659773,-1189.46,0.0001452,2]
[332751893,1721502659783,-500.0,0.0001452,2]
[332751894,1721502659795,-1876.24,0.0001452,2]
[332751895,1721502659805,-500.0,0.0001452,2]
[332751896,1721502659816,-500.0,0.0001452,2]
[332751897,1721502659826,-500.0,0.0001452,2]
[332751898,1721502659836,-922.66,0.0001452,2]
[332751899,1721502659847,-3228.45,0.0001452,2]
[332751900,1721502659856,-500.0,0.0001452,2]
[332751901,1721502659866,-693.44,0.0001452,2]
[332751902,1721502659877,-617.69,0.0001452,2]
[332751903,1721502659888,-2182.76,0.0001452,2]
[332751904,1721502659898,-526.21688811,0.0001452,2]
[332751905,1721502659908,-500.0,0.0001452,2]
[332751906,1721502659918,-9525.09,0.0001452,2]
[332751907,1721502659928,-500.0,0.0001452,2]
[332751908,1721502659938,-500.0,0.0001452,2]
[332751909,1721502659948,-571.92256385,0.0001452,2]
[332751910,1721502659959,-3568.54,0.0001452,2]
[332751911,1721502659969,-2915.71,0.0001452,2]
[332751912,1721502659979,-18390.94,0.0001452,2]
[332751913,1721502659989,-598.86,0.0001452,2]
[332751914,1721502659999,-912.35,0.0001452,2]
[332751915,1721502660010,-500.0,0.0001452,2]
[332751916,1721502660020,-650.96,0.0001452,2]
[332751917,1721502660030,-2230.68,0.0001452,2]
[332751918,1721502660040,-500.0,0.0001452,2]
[332751919,1721502660050,-5451.22,0.0001452,2]
[332751920,1721502660061,-2974.58,0.0001452,2]
[332751921,1721502660071,-1615.36,0.0001452,2]
[332751922,1721502660081,-500.0,0.0001452,2]
[332751923,1721502660095,-930.37,0.0001452,2]
[332751924,1721502660106,-1486.4,0.0001452,2]
[332751925,1721502660117,-500.0,0.0001452,2]
[332751926,1721502660127,-3008.42,0.0001452,2]
[332751927,1721502660138,-1164.01,0.0001452,2]
[332751928,1721502660148,-500.0,0.0001452,2]
[332751929,1721502660159,-505.99,0.0001452,2]
[332751930,1721502660170,-500.0,0.0001452,2]
[332751931,1721502660180,-7393.66,0.0001452,2]
[332751932,1721502660192,-1240.33,0.0001452,2]
[332751933,1721502660203,-5002.05,0.0001452,2]
[332751934,1721502660213,-500.0,0.0001452,2]
[332751935,1721502660224,-637.33,0.0001452,2]
[332751936,1721502660235,-500.0,0.0001452,2]
[332751937,1721502660245,-500.0,0.0001452,2]
[332751938,1721502660255,-3246.02,0.0001452,2]
[332751939,1721502660265,-688.84,0.0001452,2]
[332751940,1721502660276,-500.0,0.0001452,2]
[332751941,1721502660286,-842.79,0.0001452,2]
[332751942,1721502660297,-892.81,0.0001452,2]
[332751943,1721502660307,-2112.87,0.0001452,2]
[332751944,1721502660318,-500.0,0.0001452,2]
[332751945,1721502660328,-1172.79,0.0001452,2]
[332751946,1721502660338,-2831.62,0.0001452,2]
[332751947,1721502660348,-3992.43,0.0001452,2]
[332751948,1721502660358,-500.0,0.0001452,2]
[332751949,1721502660369,-756.41,0.0001452,2]
[332751950,1721502660379,-660.429424,0.0001452,2]
[332751951,1721502660389,-1025.73,0.0001452,2]
[332751952,1721502660399,-500.0,0.0001452,2]
[332751953,1721502660410,-1594.87,0.0001452,2]
[332751954,1721502660421,-660.429424,0.0001452,2]
[332751955,1721502660432,-500.0,0.0001452,2]
[332751956,1721502660442,-12028.21,0.0001452,2]
[332751957,1721502660452,-157.78037707,0.0001452,2]
[332751958,1721502660462,-500.0,0.0001452,2]
[332751959,1721502660472,-500.0,0.0001452,2]
[332751960,1721502660482,-504.22135143,0.0001452,2]
[332751961,1721502660492,-500.0,0.0001452,2]
[332751962,1721502660502,-2095.06,0.0001452,2]
[332751963,1721502660512,-787.88,0.0001452,2]
[332751964,1721502660523,-3362.83,0.0001452,2]
[332751965,1721502660533,-500.0,0.0001452,2]
[332751966,1721502660544,-545.49,0.0001452,2]
[332751967,1721502660554,-1126.35,0.0001452,2]
[332751968,1721502660564,-1085.97,0.0001452,2]
[332751969,1721502660574,-291.53186452,0.0001452,2]
[332751970,1721502660584,-626.5,0.0001452,2]
[332751971,1721502660595,-2866.21,0.0001452,2]
[332751972,1721502660605,-516.51303496,0.0001452,2]
[332751973,1721502660615,-500.0,0.0001452,2]
[332751974,1721502660625,-1437.62,0.0001452,2]
[332751975,1721502660636,-500.0,0.0001452,2]
[332751976,1721502660646,-558.13,0.0001452,2]
[332751977,1721502660656,-3130.58,0.0001452,2]